bitfinex/quotes_SOLUSD_20250107
["timestamp","ask_amount","ask_price","bid_price","bid_amount"]
[1736262229979,0.25098,210.64,210.45,1.5594]
[1736262230269,0.12549,210.6,210.45,1.5594]
[1736262230484,0.25098,210.6,210.41,6.6273]
[1736262230667,0.25098,210.6,210.42,0.12549]
[1736262230992,2.3736,210.65,210.44,32.84490308]
[1736262231150,7.1208,210.65,210.43,32.84490308]
[1736262231353,2.3736,210.65,210.45,32.84490308]
[1736262231551,2.3736,210.65,210.43,32.84490308]
[1736262231819,0.25098,210.62,210.43,32.84490308]
[1736262231954,0.12549,210.62,210.41,51.35330308]
[1736262232277,0.12549,210.62,210.48,0.12549]
[1736262232464,2.3734,210.67,210.45,32.84490308]
[1736262232656,2.3734,210.67,210.47,32.84490308]
[1736262232857,2.3734,210.67,210.48,23.902374]
[1736262233361,2.3724,210.75,210.53,32.84490308]
[1736262233548,2.3724,210.75,210.54,23.902374]
[1736262233953,0.12549,210.74,210.52,11.8751]
[1736262234153,20.0,210.73,210.52,11.8751]
[1736262234587,4.7445,210.77,210.49,32.84490308]
[1736262234588,23.776884,210.76,210.5,0.12549]
[1736262234786,0.12549,210.72,210.5,0.12549]
[1736262234960,0.25098,210.7,210.5,0.12549]
[1736262235373,5.25720824,210.75,210.5,44.84679308]
[1736262235683,26.11567744,210.8,210.53,0.12549]
[1736262235887,26.11567744,210.8,210.53,0.71206739]
[1736262236176,0.25098,210.76,210.54,23.776884]
[1736262236380,26.11567744,210.8,210.54,23.776884]
[1736262236788,2.372,210.79,210.58,32.84490308]
[1736262237094,5.272,210.89,210.53,11.8744]
[1736262237095,5.0,210.95,210.64,32.84490308]
[1736262237260,2.3703,210.94,210.7,32.97394351]
[1736262237580,2.3703,210.94,210.71,57.46237965]
[1736262237794,20.0,210.93,210.71,57.46237965]
[1736262237973,2.3703,210.94,210.77,32.97394351]
[1736262238161,2.3693,211.03,210.78,23.776884]
[1736262238362,2.3693,211.03,210.82,56.75082751]
[1736262238561,18.986051,210.97,210.84,23.776884]
[1736262238800,18.986051,210.97,210.83,23.776884]
[1736262238963,18.986051,210.97,210.82,33.68501239]
[1736262238964,12.50254107,211.04,210.85,23.776884]
[1736262239163,7.1052,211.11,210.86,0.12549]
[1736262239355,20.0,211.03,210.86,0.12549]
[1736262239575,23.14472251,211.02,210.7,32.97394351]
[1736262239773,20.0,210.98,210.71,0.71150701]
[1736262239975,2.37,210.97,210.69,317.68538362]
[1736262240156,7.11,210.97,210.7,11.8652]
[1736262240362,2.37,210.97,210.7,68.56954351]
[1736262240678,0.25098,210.89,210.66,46.38234351]
[1736262240877,0.25098,210.85,210.66,1.5412]
[1736262241474,0.25098,210.85,210.68,0.12549]
[1736262241683,0.25098,210.85,210.66,1.5412]
[1736262241996,2.3707,210.9,210.66,1.5412]
[1736262242357,2.3707,210.9,210.68,0.12549]
[1736262242562,2.3707,210.9,210.7,0.12549]
[1736262242761,2.3703,210.94,210.76,0.12549]
[1736262243191,0.357749,210.93,210.68,0.12549]
[1736262243490,0.12549,210.91,210.7,32.97394351]
[1736262243697,0.357749,210.93,210.76,23.776884]
[1736262243872,0.357749,210.93,210.78,23.902374]
[1736262244072,2.49599,210.92,210.7,32.97394351]
[1736262244373,2.49599,210.92,210.66,1.5412]
[1736262244374,0.12549,210.9,210.73,23.776884]
[1736262244584,0.357749,210.91,210.74,0.25098]
[1736262244971,0.357749,210.91,210.74,0.12549]
[1736262245166,0.357749,210.91,210.76,23.902374]
[1736262245368,0.12549,210.9,210.76,23.902374]
[1736262245591,0.12549,210.9,210.76,0.12549]
[1736262245792,0.12549,210.9,210.75,0.12549]
[1736262245964,0.483239,210.9,210.75,0.12549]
[1736262246168,0.483239,210.9,210.72,0.12549]
[1736262246478,0.357749,210.9,210.72,11.864]
[1736262246679,0.12549,210.91,210.72,11.864]
[1736262246900,2.3705,210.93,210.68,32.97394351]
[1736262246901,0.12549,210.89,210.68,32.97394351]
[1736262247211,0.12549,210.87,210.66,1.5412]
[1736262247508,0.357749,210.86,210.68,32.97394351]
[1736262247806,20.0,210.9,210.71,32.97394351]
[1736262248007,0.357749,210.89,210.73,32.97394351]
[1736262248207,5.095949,211.05,210.82,0.25098]
[1736262248417,34.22,210.98,210.82,0.25098]
[1736262248718,0.12549,210.89,210.86,0.12549]
[1736262249013,0.12549,210.89,210.66,1.4158]
[1736262249014,0.12549,210.85,210.66,1.4158]
[1736262249181,0.357749,210.85,210.68,0.25098]
[1736262249377,43.902374,210.93,210.68,33.22492351]
[1736262249591,43.902374,210.93,210.68,0.12549]
[1736262249592,20.12549,210.88,210.68,0.12549]
[1736262249913,20.0,210.83,210.62,32.97394351]
[1736262250090,2.854939,210.82,210.62,32.97394351]
[1736262250284,2.854939,210.82,210.59,42.5746]
[1736262250487,0.12549,210.77,210.59,42.5746]
[1736262250711,44.134633,210.77,210.59,42.5746]
[1736262250894,0.12549,210.76,210.59,42.5746]
[1736262251105,0.357749,210.75,210.68,0.15]
[1736262251279,11.8583,210.82,210.68,0.15]
[1736262251280,20.0,210.79,210.68,0.15]
[1736262251480,20.0,210.79,210.69,0.12549]
[1736262252007,20.0,210.79,210.68,0.15]
[1736262252008,2.3717,210.82,210.68,0.15]
[1736262252692,2.3717,210.82,210.68,32.97394351]
[1736262252889,2.3712,210.86,210.69,32.97394351]
[1736262253089,7.05374888,210.96,210.69,32.97394351]
[1736262253290,7.05374888,210.96,210.64,6.4222]
[1736262253291,20.0,210.93,210.64,6.4222]
[1736262253492,20.12549,210.91,210.64,6.4222]
[1736262253707,20.0,210.87,210.61,32.97394351]
[1736262253907,19.8746,210.87,210.61,32.97394351]
[1736262254082,19.8746,210.87,210.6,42.5946]
[1736262254285,30.62726406,210.86,210.6,42.5946]
[1736262254499,30.62726406,210.86,210.61,0.12549]
[1736262254693,23.902374,210.84,210.61,0.12549]
[1736262255788,23.902374,210.82,210.54,6.3647]
[1736262255990,23.902374,210.78,210.5,34.62414351]
[1736262256289,20.0,210.75,210.59,32.97394351]
[1736262256508,21.2371132,210.82,210.63,32.97394351]
[1736262256709,7.1146,210.83,210.58,32.97394351]
[1736262257005,7.1146,210.83,210.62,32.97394351]
[1736262257208,16.6008,210.83,210.63,0.71188733]
[1736262257511,20.0,210.8,210.58,0.71173258]
[1736262257928,2.372,210.79,210.57,32.97394351]
[1736262258152,0.12549,210.78,210.58,0.12549]
[1736262258423,0.12549,210.75,210.58,0.12549]
[1736262258586,0.12549,210.75,210.5,1.6502]
[1736262258793,23.902374,210.73,210.49,10.0]
[1736262259124,4.56267076,210.72,210.49,42.97394351]
[1736262259294,18.72189056,210.78,210.56,32.97394351]
[1736262259495,18.19909056,210.78,210.6,0.12549]
[1736262259824,18.19909056,210.78,210.67,33.09943351]
[1736262259999,2.3716,210.83,210.7,0.12549]
[1736262260190,2.3716,210.83,210.7,33.09943351]
[1736262260391,7.05374888,210.86,210.65,32.97394351]
[1736262260613,7.05374888,210.86,210.63,11.8691]
[1736262260614,20.0,210.83,210.64,32.97394351]
[1736262260810,20.0,210.83,210.62,33.68552378]
[1736262260987,2.2459,210.85,210.64,32.97394351]
[1736262261195,2.2459,210.85,210.64,33.68562131]
[1736262261387,2.2459,210.85,210.6,0.71167974]
[1736262261589,0.12549,210.81,210.59,12.5827931]
[1736262261819,2.49769,210.77,210.58,42.72]
[1736262262028,0.12549,210.73,210.58,42.5946]
[1736262262317,0.12549,210.72,210.58,42.5946]
[1736262263310,19.97101362,210.73,210.59,0.12549]
[1736262263919,7.1184,210.72,210.59,0.12549]
[1736262264132,2.3728,210.72,210.59,0.12549]
[1736262265093,4.7445,210.77,210.59,0.12549]
[1736262265323,0.12549,210.72,210.59,0.12549]
[1736262265487,19.8746,210.73,210.59,0.12549]
[1736262266029,0.12549,210.76,210.59,0.12549]
[1736262266403,7.1173,210.75,210.59,0.12549]
[1736262266736,23.902374,210.74,210.49,10.0]
[1736262267314,6.9919,210.75,210.54,32.97394351]
[1736262267518,11.7368,210.75,210.57,0.12549]
[1736262267792,11.7368,210.75,210.6,0.12549]
[1736262268226,20.0,210.72,210.58,0.12549]
[1736262268405,9.4898,210.75,210.58,23.902374]
[1736262268607,20.0,210.72,210.58,0.12549]
[1736262268816,9.4898,210.75,210.57,0.12549]
[1736262269028,20.0,210.77,210.61,0.12549]
[1736262269225,7.1157,210.8,210.64,32.97394351]
[1736262269532,2.3719,210.8,210.69,0.12549]
[1736262269900,2.3709,210.89,210.69,33.68561794]
[1736262270098,0.12549,210.88,210.67,6.1864]
[1736262270330,2.3711,210.87,210.67,6.1864]
[1736262270539,7.1133,210.87,210.68,0.12549]
[1736262270837,7.1133,210.87,210.67,6.1864]
[1736262270838,6.9879,210.87,210.71,23.902374]
[1736262270991,2.2457,210.87,210.75,0.12549]
[1736262271396,2.3707,210.91,210.79,0.12549]
[1736262271634,2.3707,210.91,210.81,0.12549]
[1736262271940,42.32249329,211.04,210.83,0.12549]
[1736262271941,2.3702,210.95,210.83,0.12549]
[1736262272337,20.0,211.01,210.83,0.12549]
[1736262272338,7.05374888,211.04,210.83,56.87631751]
[1736262272639,7.05374888,211.04,210.89,56.87631751]
[1736262272801,25.32517495,211.12,210.93,33.09943351]
[1736262272802,2.3687,211.08,210.93,33.09943351]
[1736262273006,2.3687,211.08,210.93,0.12549]
[1736262273233,2.3687,211.08,210.93,33.09943351]
[1736262273439,2.3687,211.08,210.95,33.09943351]
[1736262273748,14.107498,211.13,210.92,32.97394351]
[1736262273945,20.12549,211.08,210.88,6.1958]
[1736262274153,23.776884,211.07,210.82,0.71081265]
[1736262274329,0.12549,211.03,210.8,32.97394351]
[1736262274527,0.12549,211.03,210.79,32.97394351]
[1736262274827,43.776884,211.03,210.83,0.12549]
[1736262275024,30.12477826,211.07,210.83,0.12549]
[1736262275025,6.34789426,211.07,210.83,0.12549]
[1736262275242,20.0,211.04,210.83,32.97394351]
[1736262275546,20.0,211.04,210.84,23.902374]
[1736262275725,20.0,211.04,210.8,32.97394351]
[1736262275933,2.3693,211.03,210.8,33.68512227]
[1736262276123,2.3693,211.03,210.81,23.902374]
[1736262276323,7.1079,211.03,210.84,32.97394351]
[1736262276650,7.1079,211.03,210.83,56.87631751]
[1736262276811,7.1079,211.03,210.82,33.68500127]
[1736262277013,0.12549,211.0,210.79,32.97394351]
[1736262277212,0.12549,211.0,210.78,6.1359]
[1736262277213,0.12549,210.99,210.78,6.1359]
[1736262277444,20.12549,210.99,210.78,6.1359]
[1736262277646,23.776884,210.98,210.76,1.5697]
[1736262277830,0.12549,210.89,210.73,32.97394351]
[1736262278151,20.0,210.9,210.75,32.97394351]
[1736262278356,20.0,210.9,210.78,32.97394351]
[1736262278655,20.0,210.9,210.79,23.776884]
[1736262279139,4.7409,210.93,210.77,23.776884]
[1736262279342,2.3708,210.9,210.74,32.97394351]
[1736262279556,2.3708,210.9,210.73,32.97394351]
[1736262279855,20.0,210.89,210.68,48.9656]
[1736262280016,20.0,210.85,210.68,42.7]
[1736262280538,20.0,210.85,210.68,75.67394351]
[1736262280762,20.0,210.86,210.68,42.7]
[1736262280963,20.0,210.8,210.68,42.7]
[1736262281347,2.372,210.79,210.68,42.7]
[1736262282139,2.3706,210.91,210.68,75.67394351]
[1736262282383,2.3706,210.91,210.69,32.97394351]
[1736262282671,2.3706,210.91,210.68,42.7]
[1736262282672,23.902374,210.9,210.68,42.7]
[1736262283085,20.0,210.83,210.68,42.7]
[1736262283381,2.3716,210.82,210.68,42.7]
[1736262283942,2.3716,210.82,210.58,6.2077]
[1736262283943,20.0,210.78,210.58,6.2077]
[1736262284374,20.0,210.78,210.59,0.12549]
[1736262284880,7.1163,210.78,210.59,0.12549]
[1736262285252,7.1163,210.78,210.59,23.902374]
[1736262285451,7.1163,210.78,210.59,0.12549]
[1736262285769,20.0,210.74,210.54,1.5645]
[1736262286077,20.0,210.74,210.55,0.12549]
[1736262286462,20.0,210.75,210.55,33.09943351]
[1736262286781,11.8605,210.78,210.63,23.776884]
[1736262286977,2.3721,210.78,210.65,32.97394351]
[1736262287459,7.115,210.82,210.66,24.48858495]
[1736262287854,20.0,210.79,210.63,0.71162725]
[1736262288152,16.39605488,210.81,210.64,23.902374]
[1736262288459,20.0,210.78,210.64,23.902374]
[1736262288662,20.0,210.78,210.65,0.71167887]
[1736262288883,2.49739,210.8,210.65,0.71167887]
[1736262289265,20.0,210.78,210.66,23.776884]
[1736262289680,0.12549,210.77,210.66,23.776884]
[1736262289860,20.12549,210.77,210.65,0.71166876]
[1736262290182,20.0,210.77,210.66,0.7117362]
[1736262290351,20.0,210.78,210.66,0.7117362]
[1736262291352,20.0,210.78,210.61,5.0]
[1736262291353,16.39605488,210.81,210.71,32.97394351]
[1736262291552,4.7404,210.95,210.75,0.12549]
[1736262291773,2.3703,210.94,210.78,32.97394351]
[1736262291974,2.3703,210.94,210.79,0.7111525]
[1736262292361,2.3703,210.94,210.8,0.12549]
[1736262292889,2.3703,210.94,210.81,33.68511078]
[1736262293057,2.3688,211.07,210.82,32.97394351]
[1736262293249,0.12549,211.06,210.83,0.71102223]
[1736262293564,8.72022895,211.07,210.84,32.97394351]
[1736262293871,2.3688,211.07,210.89,32.97394351]
[1736262294085,2.3688,211.07,210.9,0.71078906]
[1736262294261,7.20806436,211.1,210.95,32.97394351]
[1736262294454,2.3684,211.12,210.96,0.71062794]
[1736262294763,2.3684,211.12,210.97,32.97394351]
[1736262294969,7.1022,211.2,210.98,0.71057483]
[1736262295185,6.35142895,211.19,210.98,0.71057483]
[1736262295362,6.35142895,211.19,210.92,33.68452592]
[1736262295363,23.902374,211.18,210.92,33.68452592]
[1736262295547,23.902374,211.18,210.91,6.0917]
[1736262295548,6.35142895,211.17,210.91,6.80228241]
[1736262296199,23.902374,211.16,210.91,6.80228241]
[1736262296364,20.0,211.1,210.82,0.71086901]
[1736262296556,20.0,211.1,210.81,6.6473]
[1736262296557,26.34789426,211.09,210.81,6.6473]
[1736262296989,0.12549,211.04,210.81,6.6473]
[1736262297296,0.12549,211.0,210.81,6.6473]
[1736262297472,20.12549,211.0,210.76,0.71110679]
[1736262297679,20.0,211.0,210.71,7.15638008]
[1736262297870,20.0,210.92,210.71,6.4451]
[1736262298065,23.776884,210.91,210.71,6.4451]
[1736262298265,20.0,210.88,210.64,44.28]
[1736262298500,29.79908514,210.91,210.64,44.99161775]
[1736262298501,20.0,210.87,210.64,44.99161775]
[1736262298688,20.0,210.83,210.64,44.28]
[1736262298874,2.3716,210.82,210.65,0.12549]
[1736262299080,2.3716,210.82,210.64,44.28]
[1736262299597,2.3716,210.82,210.65,0.12549]
[1736262299896,2.3716,210.82,210.64,43.41168769]
[1736262300100,20.0,210.78,210.64,42.7]
[1736262300603,20.0,210.79,210.64,42.7]
[1736262300903,20.0,210.79,210.65,0.12549]
[1736262301066,7.1163,210.78,210.65,0.12549]
[1736262302081,7.1163,210.78,210.64,42.7]
[1736262302683,20.0,210.75,210.52,1.5373]
[1736262302882,20.0,210.71,210.52,1.5373]
[1736262303093,20.0,210.75,210.52,1.5373]
[1736262303394,20.0,210.75,210.54,32.94307161]
[1736262303565,7.1163,210.78,210.6,32.94307161]
[1736262303769,7.1163,210.78,210.62,32.94307161]
[1736262304006,7.1163,210.78,210.56,32.94307161]
[1736262304174,7.1163,210.78,210.53,0.71191127]
[1736262304378,20.0,210.71,210.52,1.5373]
[1736262304594,20.0,210.71,210.46,0.71218099]
[1736262304797,20.0,210.67,210.44,42.72]
[1736262305503,19.792036,210.63,210.44,42.72]
[1736262305666,19.792036,210.63,210.38,32.94307161]
[1736262305667,5.0,210.62,210.34,0.71252371]
[1736262305868,5.0,210.59,210.34,0.71252371]
[1736262306169,30.12831295,210.58,210.3,7.09554458]
[1736262306391,30.12831295,210.58,210.3,6.3828]
[1736262306566,23.776884,210.56,210.3,6.3828]
[1736262306778,23.776884,210.56,210.36,32.94307161]
[1736262306983,23.776884,210.56,210.3,6.3828]
[1736262306984,2.3745,210.57,210.38,32.94307161]
[1736262307204,2.3745,210.57,210.31,0.71280207]
[1736262307415,2.3745,210.57,210.42,32.94307161]
[1736262307709,2.3745,210.57,210.43,33.65554946]
[1736262308012,237.19847067,210.7,210.43,0.71247785]
[1736262308013,20.0,210.7,210.43,0.71247785]
[1736262308184,20.0,210.7,210.41,33.65549515]
[1736262308392,2.3731,210.69,210.44,32.94307161]
[1736262308706,2.3731,210.69,210.45,0.7123647]
[1736262308904,2.3731,210.69,210.53,32.94307161]
[1736262309073,2.3721,210.78,210.56,32.94307161]
[1736262309271,2.3721,210.78,210.58,32.94307161]
[1736262309476,2.3721,210.78,210.59,0.71193842]
[1736262309802,2.3721,210.78,210.55,32.94307161]
[1736262309997,20.0,210.75,210.54,42.74]
[1736262310170,20.0,210.71,210.54,42.74]
[1736262310570,25.08009107,210.71,210.54,42.74]
[1736262310774,20.0,210.67,210.54,42.74]
[1736262311002,43.776884,210.66,210.39,1.6542]
[1736262311313,20.0,210.61,210.39,1.6542]
[1736262311477,20.0,210.61,210.36,42.74]
[1736262311478,20.0,210.57,210.36,42.74]
[1736262311683,20.0,210.55,210.36,42.74]
[1736262311983,10.0,210.67,210.36,42.74]
[1736262312195,6.35142895,210.64,210.38,32.94307161]
[1736262312496,20.0,210.61,210.4,32.94307161]
[1736262312689,11.8672,210.66,210.48,32.94307161]
[1736262312894,2.3734,210.66,210.51,32.94307161]
[1736262313092,2.3734,210.66,210.42,20.0]
[1736262313093,2.3734,210.66,210.52,33.65528066]
[1736262313287,2.3734,210.66,210.47,32.94307161]
[1736262313483,0.357749,210.65,210.48,0.7122265]
[1736262313688,7.119,210.7,210.48,0.7122265]
[1736262313896,0.357749,210.69,210.48,32.94307161]
[1736262314076,2.3732,210.68,210.49,0.71226647]
[1736262314401,0.357749,210.67,210.46,1.5009]
[1736262314569,0.357749,210.67,210.49,32.94307161]
[1736262314774,2.3732,210.68,210.53,32.94307161]
[1736262314985,0.357749,210.67,210.51,32.94307161]
[1736262315203,0.357749,210.67,210.47,0.71208258]
[1736262315386,20.0,210.65,210.48,32.94307161]
[1736262315701,0.357749,210.64,210.42,0.71219289]
[1736262315882,20.0,210.61,210.37,0.71239454]
[1736262316084,2.3742,210.59,210.37,0.71239454]
[1736262316293,24.134633,210.58,210.35,1.5496]
[1736262316476,30.48606195,210.58,210.35,1.5496]
[1736262316821,6.70917795,210.58,210.36,0.71275998]
[1736262316983,20.0,210.56,210.35,1.5496]
[1736262317183,0.357749,210.55,210.35,1.5496]
[1736262317396,2.3748,210.54,210.39,32.94307161]
[1736262317784,2.3748,210.54,210.37,32.94307161]
[1736262317985,0.483149,210.53,210.35,1.5496]
[1736262318182,0.483149,210.53,210.36,0.7126556]
[1736262318788,20.0,210.51,210.35,1.5496]
[1736262318989,0.483149,210.5,210.28,0.58721116]
[1736262319284,2.3754,210.49,210.27,43.45286427]
[1736262319593,0.608549,210.48,210.27,75.68307161]
[1736262319800,0.608549,210.48,210.27,42.74]
[1736262320604,20.0,210.44,210.28,32.94307161]
[1736262320989,0.608549,210.43,210.28,32.94307161]
[1736262321193,0.608549,210.43,210.27,42.74]
[1736262321800,20.0,210.39,210.27,42.74]
[1736262322019,0.608549,210.38,210.27,42.74]
[1736262322506,20.0,210.42,210.27,42.74]
[1736262322812,2.3757,210.46,210.31,32.94307161]
[1736262323014,2.3757,210.46,210.28,0.71297131]
[1736262323185,2.3757,210.46,210.29,32.94307161]
[1736262323386,2.3757,210.46,210.27,75.68307161]
[1736262323595,0.608549,210.45,210.27,42.74]
[1736262323791,0.608549,210.45,210.27,75.68307161]
[1736262324009,0.608549,210.45,210.27,43.45300832]
[1736262324214,0.608549,210.45,210.27,0.71300832]
[1736262324392,20.0,210.41,210.21,33.65609643]
[1736262324712,20.0,210.41,210.17,42.78]
[1736262324713,0.608549,210.4,210.17,42.78]
[1736262325683,0.608549,210.4,210.22,32.94307161]
[1736262325883,8.42690891,210.48,210.3,32.94307161]
[1736262325884,2.3755,210.48,210.3,32.94307161]
[1736262326110,0.733949,210.47,210.29,32.94307161]
[1736262326290,0.733949,210.5,210.32,32.94307161]
[1736262326493,0.733949,210.5,210.26,32.94307161]
[1736262326784,0.733949,210.5,210.17,52.78]
[1736262326785,30.12831295,210.49,210.22,32.94307161]
[1736262326990,20.0,210.46,210.29,32.94307161]
[1736262327284,0.859349,210.45,210.2,33.65597714]
[1736262327588,0.859349,210.45,210.28,32.94307161]
[1736262328301,0.859349,210.45,210.22,0.71295724]
[1736262328302,0.859349,210.47,210.32,32.94307161]
[1736262328517,0.859349,210.5,210.37,32.94307161]
[1736262328813,0.859349,210.52,210.34,32.94307161]
[1736262328988,6.35142895,210.6,210.35,32.94307161]
[1736262329195,23.776884,210.56,210.26,0.7127264]
[1736262329406,23.776884,210.51,210.2,44.83627161]
[1736262329598,23.776884,210.46,210.17,75.72307161]
[1736262329805,20.0,210.42,210.17,75.72307161]
[1736262330010,0.859349,210.41,210.17,42.78]
[1736262330210,0.859349,210.41,210.16,33.65616676]
[1736262330211,0.859349,210.41,210.16,0.71309515]
[1736262330437,20.0,210.37,210.14,1.5125]
[1736262330716,20.0,210.32,210.08,42.78]
[1736262330917,0.89198542,210.31,210.08,42.78]
[1736262331104,20.0,210.28,210.08,42.78]
[1736262331301,5.0,210.22,210.01,19.75617239]
[1736262331517,20.0,210.19,209.96,0.71377378]
[1736262331703,20.0,210.17,209.95,10.71386829]
[1736262331904,0.89251403,210.16,209.96,33.65708283]
[1736262332106,0.89251403,210.16,209.96,32.94307161]
[1736262332418,2.3792,210.15,209.95,9.8746]
[1736262332621,0.89281215,210.14,209.98,37.94307161]
[1736262332795,0.89281215,210.14,209.95,9.8746]
[1736262332796,0.89281215,210.14,210.06,32.94307161]
[1736262333118,0.89281215,210.14,210.05,20.0]
[1736262333119,0.89260281,210.19,210.0,32.94307161]
[1736262333297,0.89260281,210.19,210.06,32.94307161]
[1736262333622,0.89260281,210.19,210.02,5.0]
[1736262333623,0.89260281,210.19,210.1,32.94307161]
[1736262333800,2.3783,210.23,210.05,32.94307161]
[1736262334142,20.0,210.27,210.1,32.94307161]
[1736262334296,0.89199852,210.26,210.11,0.71359882]
[1736262334643,0.89199852,210.26,210.08,32.94307161]
[1736262334801,0.89199852,210.26,210.12,32.94307161]
[1736262334802,0.89193494,210.26,210.12,32.94307161]
[1736262334993,0.89201396,210.29,210.09,33.65661956]
[1736262335194,0.89201396,210.29,210.09,0.71354795]
[1736262335412,0.89201396,210.29,210.06,6.2673]
[1736262335607,22.3777,210.28,210.09,284.0]
[1736262335818,22.3777,210.28,210.0,43.47396408]
[1736262335819,20.0,210.23,210.0,42.8]
[1736262335994,0.89249967,210.22,210.0,42.8]
[1736262336191,0.89249967,210.22,210.0,75.74307161]
[1736262336394,2.3785,210.21,210.02,32.94307161]
[1736262336597,0.89227737,210.2,210.02,32.94307161]
[1736262336797,0.89227737,210.2,210.0,42.6746]
[1736262337028,20.0,210.16,210.0,42.6746]
[1736262337318,0.89261058,210.15,210.0,42.6746]
[1736262337824,20.0,210.11,209.95,9.8746]
[1736262337996,23.776884,210.09,209.95,9.8746]
[1736262338199,0.89306287,210.08,209.95,9.8746]
[1736262338399,0.89306287,210.08,209.95,42.81767161]
[1736262338614,0.89289134,210.1,209.95,42.69227161]
[1736262338801,0.89289134,210.1,209.99,32.94307161]
[1736262339000,0.89260397,210.16,210.06,32.94307161]
[1736262339223,2.3781,210.25,210.08,32.94307161]
[1736262339420,0.89229929,210.24,210.1,32.94307161]
[1736262339643,0.89229929,210.24,210.0,0.6748052]
[1736262339644,0.89229929,210.24,210.12,32.94307161]
[1736262339804,0.89229929,210.24,210.11,32.94307161]
[1736262340129,0.89229929,210.24,210.0,0.6748052]
[1736262340130,0.89229929,210.24,210.09,32.94307161]
[1736262340351,0.89229929,210.24,210.03,0.67394713]
[1736262340352,0.89229929,210.24,210.13,32.94307161]
[1736262340505,0.89196918,210.28,210.14,32.94307161]
[1736262340702,0.89196918,210.28,210.1,32.94307161]
[1736262340910,0.89196918,210.28,210.06,0.67373624]
[1736262340911,0.8920531,210.32,210.16,32.94307161]
[1736262341225,0.8920531,210.32,210.17,32.94307161]
[1736262341530,7.3766,210.38,210.09,32.94307161]
[1736262341830,7.3766,210.38,210.06,0.67327436]
[1736262341831,20.0,210.35,210.15,32.94307161]
[1736262342039,0.89184451,210.34,210.1,0.67391296]
[1736262342328,0.89184451,210.34,210.05,35.7051]
[1736262342329,0.89184451,210.34,210.16,32.94307161]
[1736262342513,2.3772,210.33,210.1,32.94307161]
[1736262342713,0.8919941,210.32,210.08,32.94307161]
[1736262342913,0.8919941,210.32,210.1,32.94307161]
[1736262343230,20.0,210.24,210.02,32.94307161]
[1736262343435,20.0,210.28,209.99,1.5914]
[1736262343436,0.89226049,210.23,210.01,32.94307161]
[1736262343635,20.0,210.28,209.98,32.94307161]
[1736262343636,20.0,210.25,209.98,32.94307161]
[1736262343816,0.89242177,210.24,209.97,82.06567161]
[1736262344141,20.0,210.2,209.98,32.94307161]
[1736262344320,20.0,210.2,209.97,75.76307161]
[1736262344321,0.89246953,210.19,209.97,75.76307161]
[1736262344525,2.3789,210.18,209.97,75.76307161]
[1736262344713,20.0,210.16,209.97,42.82]
[1736262344915,0.89266479,210.15,209.97,42.82]
[1736262345111,20.89266479,210.15,209.97,42.82]
[1736262345327,20.0,210.11,209.97,42.82]
[1736262345631,0.89273696,210.1,209.97,42.82]
[1736262345834,0.89273696,210.1,209.95,9.7492]
[1736262346206,20.0,210.08,209.95,9.7492]
[1736262346412,2.3802,210.06,209.95,9.7492]
[1736262346607,0.8931364,210.05,209.95,9.7492]
[1736262347304,0.8931364,210.05,209.95,42.69227161]
[1736262347547,0.89297765,210.09,209.97,32.94307161]
[1736262347749,0.89277798,210.17,210.01,32.94307161]
[1736262348034,0.89277798,210.17,210.05,32.94307161]
[1736262348233,4.7565,210.24,209.95,21.6566]
[1736262348234,2.3784,210.22,210.11,32.94307161]
[1736262348446,0.89234696,210.21,210.17,32.94307161]
[1736262348660,0.89226102,210.33,210.19,32.94307161]
[1736262348829,0.89226102,210.33,210.24,32.94307161]
[1736262349012,0.89226102,210.33,210.18,39.23557161]
[1736262349213,0.89226102,210.33,210.2,32.94307161]